[Event "*** Titled Tuesday Blitz"]
[Site "Chess.com"]
[Date "2020.05.12"]
[Round "6"]
[White "OK97"]
[Black "TregubovP"]
[Result "1/2-1/2"]
[WhiteElo "2752"]
[BlackElo "2543"]
[TimeControl "180+1"]
[EndTime "11:07:12 PDT"]
[Termination "Game drawn by repetition"]

1. e4 {[%clk 0:03:00.9]} 1... e6 {[%clk 0:03:00]} 2. d4 {[%clk 0:03:00.5]} 2...
d5 {[%clk 0:03:00.6]} 3. Nc3 {[%clk 0:03:00.8]} 3... Bb4 {[%clk 0:03:00.6]} 4.
Bd3 {[%clk 0:03:00.9]} 4... dxe4 {[%clk 0:02:56.9]} 5. Bxe4 {[%clk 0:03:01.8]}
5... Nf6 {[%clk 0:02:55.7]} 6. Bf3 {[%clk 0:03:02]} 6... O-O {[%clk 0:02:53]} 7.
Ne2 {[%clk 0:02:57.8]} 7... Nbd7 {[%clk 0:02:53.1]} 8. O-O {[%clk 0:02:50.1]}
8... e5 {[%clk 0:02:52.3]} 9. a3 {[%clk 0:02:41.4]} 9... Bd6 {[%clk 0:02:52.2]}
10. Bg5 {[%clk 0:02:34.2]} 10... h6 {[%clk 0:02:49.6]} 11. Bh4 {[%clk
0:02:14.6]} 11... Re8 {[%clk 0:02:47.7]} 12. h3 {[%clk 0:01:19.3]} 12... g5
{[%clk 0:02:25.5]} 13. Bg3 {[%clk 0:01:19.6]} 13... e4 {[%clk 0:02:25.8]} 14.
Bg4 {[%clk 0:01:18.9]} 14... Nxg4 {[%clk 0:02:25.6]} 15. hxg4 {[%clk 0:01:18.9]}
15... Nf6 {[%clk 0:02:25.8]} 16. f3 {[%clk 0:01:11.6]} 16... exf3 {[%clk
0:02:25.5]} 17. gxf3 {[%clk 0:01:11.9]} 17... Be6 {[%clk 0:02:12.3]} 18. Kg2
{[%clk 0:00:55.9]} 18... Bc4 {[%clk 0:02:05.2]} 19. Rh1 {[%clk 0:00:41.9]} 19...
Nd5 {[%clk 0:01:55.8]} 20. Qd2 {[%clk 0:00:38]} 20... Nxc3 {[%clk 0:01:34.8]}
21. Nxc3 {[%clk 0:00:37.6]} 21... Bxg3 {[%clk 0:01:34]} 22. Kxg3 {[%clk
0:00:37.6]} 22... Qd6+ {[%clk 0:01:32]} 23. Kg2 {[%clk 0:00:30]} 23... Rad8
{[%clk 0:01:27]} 24. Ne4 {[%clk 0:00:28.5]} 24... Qg6 {[%clk 0:01:17.4]} 25.
Rae1 {[%clk 0:00:26.6]} 25... Bd5 {[%clk 0:01:14.7]} 26. Ng3 {[%clk 0:00:26.8]}
26... c5 {[%clk 0:01:10.6]} 27. Nf5 {[%clk 0:00:25.6]} 27... Qc6 {[%clk
0:00:50]} 28. Nxh6+ {[%clk 0:00:22.6]} 28... Kf8 {[%clk 0:00:49.1]} 29. Rh3
{[%clk 0:00:16.2]} 29... Bxf3+ {[%clk 0:00:41.1]} 30. Rxf3 {[%clk 0:00:11.1]}
30... Qxh6 {[%clk 0:00:40.7]} 31. Rxe8+ {[%clk 0:00:07.8]} 31... Rxe8 {[%clk
0:00:40.1]} 32. Qf2 {[%clk 0:00:08.3]} 32... Qe6 {[%clk 0:00:37.3]} 33. Rf5
{[%clk 0:00:05.4]} 33... cxd4 {[%clk 0:00:34.3]} 34. Qxd4 {[%clk 0:00:06.3]}
34... Qe4+ {[%clk 0:00:31.7]} 35. Qxe4 {[%clk 0:00:06.3]} 35... Rxe4 {[%clk
0:00:32.3]} 36. Kf3 {[%clk 0:00:06.8]} 36... Rc4 {[%clk 0:00:28.1]} 37. c3
{[%clk 0:00:07.3]} 37... Rc6 {[%clk 0:00:25.2]} 38. Rxg5 {[%clk 0:00:07.4]}
38... Rd6 {[%clk 0:00:25.1]} 39. Ke3 {[%clk 0:00:06.3]} 39... Ke7 {[%clk
0:00:22.8]} 40. Rf5 {[%clk 0:00:05.3]} 40... a6 {[%clk 0:00:21.3]} 41. a4 {[%clk
0:00:05.2]} 41... Rb6 {[%clk 0:00:20.5]} 42. b4 {[%clk 0:00:04.8]} 42... Re6+
{[%clk 0:00:19.1]} 43. Kd4 {[%clk 0:00:04.7]} 43... Rg6 {[%clk 0:00:19.7]} 44.
Re5+ {[%clk 0:00:04.4]} 44... Kd7 {[%clk 0:00:19.7]} 45. Re4 {[%clk 0:00:04.6]}
45... Kd6 {[%clk 0:00:19]} 46. c4 {[%clk 0:00:05.1]} 46... b6 {[%clk 0:00:18.9]}
47. a5 {[%clk 0:00:05.2]} 47... bxa5 {[%clk 0:00:18.9]} 48. bxa5 {[%clk
0:00:06.1]} 48... Rg5 {[%clk 0:00:18.9]} 49. Rf4 {[%clk 0:00:06.7]} 49... Rxa5
{[%clk 0:00:17.9]} 50. Rxf7 {[%clk 0:00:06.7]} 50... Rg5 {[%clk 0:00:18.5]} 51.
Rf6+ {[%clk 0:00:06.4]} 51... Kc7 {[%clk 0:00:17.5]} 52. Rf4 {[%clk 0:00:06.3]}
52... Kd6 {[%clk 0:00:17.6]} 53. c5+ {[%clk 0:00:05.1]} 53... Rxc5 {[%clk
0:00:15]} 54. Rf6+ {[%clk 0:00:04.6]} 54... Ke7 {[%clk 0:00:15.2]} 55. Rxa6
{[%clk 0:00:03.7]} 55... Rg5 {[%clk 0:00:15]} 56. Ra7+ {[%clk 0:00:04.2]} 56...
Ke6 {[%clk 0:00:14.5]} 57. Ra6+ {[%clk 0:00:04.5]} 57... Ke7 {[%clk 0:00:14.8]}
58. Ra7+ {[%clk 0:00:04.9]} 58... Ke6 {[%clk 0:00:14.9]} 59. Ra6+ {[%clk
0:00:05.4]} 59... Ke7 {[%clk 0:00:15]} 1/2-1/2

[Event "*** Titled Tuesday Blitz"]
[Site "Chess.com"]
[Date "2020.05.12"]
[Round "6"]
[White "IljaJoke"]
[Black "PavlovDanila"]
[Result "1-0"]
[WhiteElo "2549"]
[BlackElo "2691"]
[TimeControl "180+1"]
[EndTime "11:07:14 PDT"]
[Termination "IljaJoke won by resignation"]

1. d4 {[%clk 0:03:00.9]} 1... Nf6 {[%clk 0:02:59.3]} 2. c4 {[%clk 0:03:01]} 2...
g6 {[%clk 0:02:59.5]} 3. Nc3 {[%clk 0:03:00.7]} 3... Bg7 {[%clk 0:02:59.9]} 4.
e4 {[%clk 0:03:00.7]} 4... d6 {[%clk 0:03:00.8]} 5. Be2 {[%clk 0:03:01]} 5...
O-O {[%clk 0:03:01.1]} 6. Be3 {[%clk 0:03:01.5]} 6... e5 {[%clk 0:03:00.6]} 7.
d5 {[%clk 0:03:01.8]} 7... Ne8 {[%clk 0:02:57]} 8. g4 {[%clk 0:02:52.1]} 8... f5
{[%clk 0:02:55.3]} 9. gxf5 {[%clk 0:02:50.4]} 9... gxf5 {[%clk 0:02:56.2]} 10.
exf5 {[%clk 0:02:46.6]} 10... Bxf5 {[%clk 0:02:48.1]} 11. Bg4 {[%clk 0:02:44.1]}
11... Qh4 {[%clk 0:02:38.2]} 12. Bxf5 {[%clk 0:02:35.4]} 12... Rxf5 {[%clk
0:02:39.1]} 13. Qd3 {[%clk 0:02:24.7]} 13... Rf7 {[%clk 0:02:31.7]} 14. Nge2
{[%clk 0:02:19.7]} 14... Na6 {[%clk 0:02:24.1]} 15. Ne4 {[%clk 0:02:14.7]} 15...
Bh6 {[%clk 0:02:09]} 16. Rg1+ {[%clk 0:02:01.5]} 16... Rg7 {[%clk 0:02:08.2]}
17. O-O-O {[%clk 0:01:52.7]} 17... Nc5 {[%clk 0:01:47.9]} 18. Nxc5 {[%clk
0:01:47.1]} 18... dxc5 {[%clk 0:01:48.8]} 19. Rxg7+ {[%clk 0:01:28.8]} 19...
Kxg7 {[%clk 0:01:35.4]} 20. Rg1+ {[%clk 0:01:23.3]} 20... Kh8 {[%clk 0:01:32]}
21. Qf5 {[%clk 0:01:18.6]} 21... Ng7 {[%clk 0:00:41.4]} 22. Qg4 {[%clk
0:00:43.7]} 22... Qxh2 {[%clk 0:00:26.9]} 23. Rg2 {[%clk 0:00:32.1]} 23... Qh5
{[%clk 0:00:11.2]} 24. Qxh5 {[%clk 0:00:29.4]} 24... Bxe3+ {[%clk 0:00:11.3]}
25. fxe3 {[%clk 0:00:29.8]} 25... Nxh5 {[%clk 0:00:12.1]} 26. Rg5 {[%clk
0:00:30.1]} 26... Nf6 {[%clk 0:00:11]} 27. Rxe5 {[%clk 0:00:30.3]} 27... Kg7
{[%clk 0:00:08.5]} 28. Ng3 {[%clk 0:00:29.2]} 28... Kg6 {[%clk 0:00:08]} 29. Re7
{[%clk 0:00:26.9]} 29... h5 {[%clk 0:00:07.9]} 30. e4 {[%clk 0:00:25.6]} 30...
h4 {[%clk 0:00:07.9]} 31. Nf5 {[%clk 0:00:26]} 31... Rh8 {[%clk 0:00:06.5]} 32.
Rg7+ {[%clk 0:00:21.6]} 32... Kh5 {[%clk 0:00:06.6]} 33. e5 {[%clk 0:00:22]}
33... Ng4 {[%clk 0:00:05.3]} 34. e6 {[%clk 0:00:19.8]} 34... h3 {[%clk
0:00:05.4]} 35. Ng3+ {[%clk 0:00:07.9]} 35... Kh4 {[%clk 0:00:05.2]} 36. Nf5+
{[%clk 0:00:07.5]} 36... Kh5 {[%clk 0:00:05.4]} 37. e7 {[%clk 0:00:04.9]} 37...
h2 {[%clk 0:00:04]} 38. Ng3+ {[%clk 0:00:05.2]} 38... Kh4 {[%clk 0:00:04.1]} 39.
Nh1 {[%clk 0:00:05.3]} 39... Kh3 {[%clk 0:00:03.1]} 40. Kc2 {[%clk 0:00:05]}
40... Re8 {[%clk 0:00:03.2]} 41. Kd3 {[%clk 0:00:03.3]} 41... Kg2 {[%clk
0:00:02]} 42. Rxg4+ {[%clk 0:00:03]} 42... Kxh1 {[%clk 0:00:02.5]} 43. Rg7
{[%clk 0:00:02.1]} 43... a6 {[%clk 0:00:02]} 44. Ke4 {[%clk 0:00:02.4]} 44... b5
{[%clk 0:00:01.3]} 45. Ke5 {[%clk 0:00:01.7]} 45... bxc4 {[%clk 0:00:01.3]} 46.
Ke6 {[%clk 0:00:02.2]} 46... a5 {[%clk 0:00:01.8]} 47. Kd7 {[%clk 0:00:02.3]}
47... Rxe7+ {[%clk 0:00:02.2]} 48. Kxe7 {[%clk 0:00:03.2]} 48... c3 {[%clk
0:00:02]} 49. bxc3 {[%clk 0:00:03.5]} 49... a4 {[%clk 0:00:01.8]} 50. c4 {[%clk
0:00:03.7]} 50... a3 {[%clk 0:00:02]} 51. Rh7 {[%clk 0:00:04]} 51... c6 {[%clk
0:00:02.5]} 52. dxc6 {[%clk 0:00:03.7]} 52... Kg1 {[%clk 0:00:03.1]} 53. Rxh2
{[%clk 0:00:03.9]} 53... Kxh2 {[%clk 0:00:04]} 54. c7 {[%clk 0:00:04.6]} 54...
Kg3 {[%clk 0:00:03.8]} 55. c8=Q {[%clk 0:00:05.5]} 55... Kf3 {[%clk 0:00:04.7]}
56. Qe6 {[%clk 0:00:06.1]} 56... Kf4 {[%clk 0:00:04.5]} 57. Kd6 {[%clk 0:00:07]}
57... Kf3 {[%clk 0:00:04.5]} 58. Kxc5 {[%clk 0:00:07.9]} 1-0

[Event "*** Titled Tuesday Blitz"]
[Site "Chess.com"]
[Date "2020.05.12"]
[Round "6"]
[White "Y0ung_Capablanca"]
[Black "Yuri202062"]
[Result "1-0"]
[WhiteElo "2698"]
[BlackElo "2477"]
[TimeControl "180+1"]
[EndTime "11:07:14 PDT"]
[Termination "Y0ung_Capablanca won on time"]

1. d4 {[%clk 0:03:00.9]} 1... d5 {[%clk 0:02:59.6]} 2. c4 {[%clk 0:03:00.6]}
2... e6 {[%clk 0:02:59.6]} 3. Nf3 {[%clk 0:03:00.4]} 3... Nf6 {[%clk 0:02:59.3]}
4. Nc3 {[%clk 0:02:59.7]} 4... c6 {[%clk 0:02:59.1]} 5. Qd3 {[%clk 0:02:58.7]}
5... dxc4 {[%clk 0:02:54.9]} 6. Qxc4 {[%clk 0:02:57.3]} 6... b5 {[%clk
0:02:55.1]} 7. Qd3 {[%clk 0:02:52.5]} 7... a6 {[%clk 0:02:55]} 8. e4 {[%clk
0:02:49.9]} 8... c5 {[%clk 0:02:55.3]} 9. Bg5 {[%clk 0:02:45.2]} 9... cxd4
{[%clk 0:02:53.2]} 10. Nxd4 {[%clk 0:02:40.7]} 10... Nbd7 {[%clk 0:02:41.1]} 11.
Rd1 {[%clk 0:02:36]} 11... Bb7 {[%clk 0:02:38.9]} 12. Qe3 {[%clk 0:02:14.4]}
12... Qb8 {[%clk 0:02:02.3]} 13. f3 {[%clk 0:01:59.9]} 13... Bd6 {[%clk
0:01:59.7]} 14. Be2 {[%clk 0:01:35.4]} 14... O-O {[%clk 0:01:54.2]} 15. g3
{[%clk 0:01:28.7]} 15... h6 {[%clk 0:01:45.6]} 16. Bxf6 {[%clk 0:01:27.8]} 16...
Nxf6 {[%clk 0:01:44.6]} 17. O-O {[%clk 0:01:22.6]} 17... Rd8 {[%clk 0:01:42.4]}
18. Nb3 {[%clk 0:01:06.4]} 18... Qc7 {[%clk 0:01:26.3]} 19. Rc1 {[%clk
0:01:02.4]} 19... Bc6 {[%clk 0:00:56.4]} 20. f4 {[%clk 0:00:51.9]} 20... Nd7
{[%clk 0:00:41.7]} 21. e5 {[%clk 0:00:44.1]} 21... Be7 {[%clk 0:00:40.8]} 22.
Ne4 {[%clk 0:00:42.5]} 22... Rac8 {[%clk 0:00:37.7]} 23. Bf3 {[%clk 0:00:40.4]}
23... Qb6 {[%clk 0:00:31.9]} 24. Kf2 {[%clk 0:00:33.3]} 24... Qxe3+ {[%clk
0:00:29.9]} 25. Kxe3 {[%clk 0:00:34.2]} 25... Bxe4 {[%clk 0:00:27.1]} 26. Bxe4
{[%clk 0:00:32.7]} 26... Nc5 {[%clk 0:00:26.4]} 27. Nd4 {[%clk 0:00:27.4]} 27...
Nxe4 {[%clk 0:00:19.4]} 28. Kxe4 {[%clk 0:00:26.9]} 28... Bc5 {[%clk 0:00:18.8]}
29. Nb3 {[%clk 0:00:22.5]} 29... Bb6 {[%clk 0:00:18.5]} 30. Rfd1 {[%clk
0:00:21.1]} 30... Kf8 {[%clk 0:00:17.8]} 31. Rxd8+ {[%clk 0:00:20.2]} 31... Rxd8
{[%clk 0:00:16.8]} 32. Rc6 {[%clk 0:00:21.1]} 32... Rb8 {[%clk 0:00:17]} 33. Rd6
{[%clk 0:00:15.3]} 33... Ke7 {[%clk 0:00:16.5]} 34. Nd4 {[%clk 0:00:13.2]} 34...
Bxd4 {[%clk 0:00:15.6]} 35. Kxd4 {[%clk 0:00:14.1]} 35... Ra8 {[%clk 0:00:15.5]}
36. Kc5 {[%clk 0:00:13.9]} 36... Rc8+ {[%clk 0:00:15.5]} 37. Kb4 {[%clk
0:00:12.8]} 37... Rc2 {[%clk 0:00:14.8]} 38. Kb3 {[%clk 0:00:08.8]} 38... Rxh2
{[%clk 0:00:14.1]} 39. Rxa6 {[%clk 0:00:09.3]} 39... Rg2 {[%clk 0:00:13.6]} 40.
Ra7+ {[%clk 0:00:07.2]} 40... Ke8 {[%clk 0:00:12.9]} 41. Kb4 {[%clk 0:00:06.4]}
41... Rxg3 {[%clk 0:00:11.9]} 42. Kxb5 {[%clk 0:00:06.3]} 42... h5 {[%clk
0:00:11.8]} 43. b4 {[%clk 0:00:05.1]} 43... h4 {[%clk 0:00:10.6]} 44. a4 {[%clk
0:00:05.7]} 44... h3 {[%clk 0:00:10.5]} 45. Ra8+ {[%clk 0:00:06.4]} 45... Kd7
{[%clk 0:00:10.1]} 46. Rh8 {[%clk 0:00:07.3]} 46... Kc7 {[%clk 0:00:08.5]} 47.
a5 {[%clk 0:00:07.7]} 47... Ra3 {[%clk 0:00:07.2]} 48. Ka6 {[%clk 0:00:07.4]}
48... Ra4 {[%clk 0:00:03.6]} 49. b5 {[%clk 0:00:07.7]} 49... Rxf4 {[%clk
0:00:03.6]} 50. b6+ {[%clk 0:00:07.6]} 50... Kc6 {[%clk 0:00:03]} 51. Rxh3
{[%clk 0:00:07.7]} 51... Rb4 {[%clk 0:00:02.2]} 52. Rc3+ {[%clk 0:00:08]} 52...
Kd5 {[%clk 0:00:02.5]} 53. b7 {[%clk 0:00:08.5]} 53... Kxe5 {[%clk 0:00:02.6]}
54. Ka7 {[%clk 0:00:09]} 54... g5 {[%clk 0:00:02.6]} 55. a6 {[%clk 0:00:09.2]}
55... g4 {[%clk 0:00:02]} 56. b8=Q+ {[%clk 0:00:09.7]} 56... Rxb8 {[%clk
0:00:01.1]} 57. Kxb8 {[%clk 0:00:10.6]} 1-0

[Event "*** Titled Tuesday Blitz"]
[Site "Chess.com"]
[Date "2020.05.12"]
[Round "6"]
[White "WhiteCapital80"]
[Black "viktorskliarov"]
[Result "1/2-1/2"]
[WhiteElo "2456"]
[BlackElo "2586"]
[TimeControl "180+1"]
[EndTime "11:07:14 PDT"]
[Termination "Game drawn by stalemate"]

1. e4 {[%clk 0:03:00.9]} 1... c5 {[%clk 0:02:59.4]} 2. Nf3 {[%clk 0:03:00.9]}
2... Nc6 {[%clk 0:02:59.1]} 3. d4 {[%clk 0:03:01.3]} 3... cxd4 {[%clk 0:03:00]}
4. Nxd4 {[%clk 0:03:01.8]} 4... Nf6 {[%clk 0:03:00.5]} 5. Nc3 {[%clk 0:03:01.6]}
5... e5 {[%clk 0:03:00.6]} 6. Ndb5 {[%clk 0:03:01.5]} 6... d6 {[%clk 0:03:00.7]}
7. Bg5 {[%clk 0:03:01.9]} 7... a6 {[%clk 0:03:00.6]} 8. Na3 {[%clk 0:03:01.6]}
8... b5 {[%clk 0:03:01.2]} 9. Nd5 {[%clk 0:03:02]} 9... Be7 {[%clk 0:03:01.7]}
10. Bxf6 {[%clk 0:03:02.6]} 10... Bxf6 {[%clk 0:03:01.9]} 11. c3 {[%clk
0:03:03.2]} 11... O-O {[%clk 0:03:00.9]} 12. Nc2 {[%clk 0:03:03]} 12... Rb8
{[%clk 0:03:00.6]} 13. g3 {[%clk 0:03:01.9]} 13... g6 {[%clk 0:02:59.7]} 14. Bg2
{[%clk 0:02:59.5]} 14... Bg7 {[%clk 0:02:55.5]} 15. Ncb4 {[%clk 0:02:50.6]}
15... Nxb4 {[%clk 0:02:52.5]} 16. Nxb4 {[%clk 0:02:50.6]} 16... Qb6 {[%clk
0:02:42]} 17. Nd5 {[%clk 0:02:50.1]} 17... Qc5 {[%clk 0:02:39.8]} 18. Qd3 {[%clk
0:02:41.7]} 18... Be6 {[%clk 0:02:38.4]} 19. b4 {[%clk 0:02:36.4]} 19... Qa7
{[%clk 0:02:26.7]} 20. O-O {[%clk 0:02:35]} 20... Bxd5 {[%clk 0:02:15.8]} 21.
Qxd5 {[%clk 0:02:28.8]} 21... Qc7 {[%clk 0:02:12]} 22. Rfc1 {[%clk 0:02:23.9]}
22... Bh6 {[%clk 0:02:10.8]} 23. Rc2 {[%clk 0:02:23]} 23... Rfc8 {[%clk
0:02:03.6]} 24. a4 {[%clk 0:02:12.2]} 24... Kg7 {[%clk 0:01:58.4]} 25. axb5
{[%clk 0:02:08]} 25... Rxb5 {[%clk 0:01:53.7]} 26. Qd3 {[%clk 0:02:06.1]} 26...
Rxb4 {[%clk 0:01:37.3]} 27. Bh3 {[%clk 0:01:51.6]} 27... Rb6 {[%clk 0:00:47.5]}
28. Bxc8 {[%clk 0:01:50.5]} 28... Qxc8 {[%clk 0:00:48.4]} 29. Rca2 {[%clk
0:01:45.5]} 29... Rc6 {[%clk 0:00:42.5]} 30. Rxa6 {[%clk 0:01:39.2]} 30... Rxc3
{[%clk 0:00:41.2]} 31. Qxd6 {[%clk 0:01:39.1]} 31... Rc1+ {[%clk 0:00:29.5]} 32.
Rxc1 {[%clk 0:01:33.3]} 32... Qxc1+ {[%clk 0:00:29.4]} 33. Kg2 {[%clk
0:01:33.5]} 33... Qg5 {[%clk 0:00:26.6]} 34. h4 {[%clk 0:01:31.7]} 34... Qh5
{[%clk 0:00:22.1]} 35. Qf6+ {[%clk 0:01:29.2]} 35... Kg8 {[%clk 0:00:22.6]} 36.
Ra8+ {[%clk 0:01:27.7]} 36... Bf8 {[%clk 0:00:23.1]} 37. Qe7 {[%clk 0:01:20.5]}
37... Qh6 {[%clk 0:00:23.2]} 38. Qxe5 {[%clk 0:01:19.7]} 38... Qc1 {[%clk
0:00:16.2]} 39. Qe7 {[%clk 0:01:16.6]} 39... Qh6 {[%clk 0:00:16.2]} 40. e5
{[%clk 0:01:12.8]} 40... Qg7 {[%clk 0:00:16]} 41. f4 {[%clk 0:01:11.4]} 41... h5
{[%clk 0:00:15]} 42. Kf3 {[%clk 0:01:07.9]} 42... Qh6 {[%clk 0:00:13.7]} 43. e6
{[%clk 0:01:02.2]} 43... Qg7 {[%clk 0:00:13.5]} 44. exf7+ {[%clk 0:00:38.8]}
44... Kh7 {[%clk 0:00:07.9]} 45. Rxf8 {[%clk 0:00:32.8]} 45... Qc3+ {[%clk
0:00:07.8]} 46. Qe3 {[%clk 0:00:31.2]} 46... Qc6+ {[%clk 0:00:07.8]} 47. Kf2
{[%clk 0:00:29.5]} 47... Qc2+ {[%clk 0:00:07.3]} 48. Kg1 {[%clk 0:00:29.5]}
48... Qd1+ {[%clk 0:00:06.5]} 49. Kh2 {[%clk 0:00:28.2]} 49... Qc2+ {[%clk
0:00:06.7]} 50. Kh1 {[%clk 0:00:26.4]} 50... Qd1+ {[%clk 0:00:06.7]} 51. Kg2
{[%clk 0:00:25.8]} 51... Qc2+ {[%clk 0:00:06.6]} 52. Qf2 {[%clk 0:00:25.6]}
52... Qc6+ {[%clk 0:00:06.1]} 53. Kh2 {[%clk 0:00:25.2]} 53... Qf6 {[%clk
0:00:03.6]} 54. Re8 {[%clk 0:00:22.9]} 54... Qxf7 {[%clk 0:00:03.4]} 55. Qe2
{[%clk 0:00:22.7]} 55... Kh6 {[%clk 0:00:03.5]} 56. Qe6 {[%clk 0:00:19.5]} 56...
Qb7 {[%clk 0:00:01.7]} 57. Qe2 {[%clk 0:00:17.8]} 57... Qd7 {[%clk 0:00:01.4]}
58. Re7 {[%clk 0:00:17.9]} 58... Qd6 {[%clk 0:00:01.2]} 59. Rf7 {[%clk
0:00:17.3]} 59... Qe6 {[%clk 0:00:01.3]} 60. Qxe6 {[%clk 0:00:16.2]} 1/2-1/2

[Event "*** Titled Tuesday Blitz"]
[Site "Chess.com"]
[Date "2020.05.12"]
[Round "6"]
[White "MoonlighT89"]
[Black "The_Machine04"]
[Result "1-0"]
[WhiteElo "2506"]
[BlackElo "2310"]
[TimeControl "180+1"]
[EndTime "11:07:14 PDT"]
[Termination "MoonlighT89 won by resignation"]

1. e4 {[%clk 0:03:00.9]} 1... Nf6 {[%clk 0:02:59.7]} 2. Nc3 {[%clk 0:02:53.8]}
2... d6 {[%clk 0:02:58.8]} 3. d4 {[%clk 0:02:53.4]} 3... e5 {[%clk 0:02:56.4]}
4. Nf3 {[%clk 0:02:53.7]} 4... Nbd7 {[%clk 0:02:55.6]} 5. Bc4 {[%clk 0:02:53.3]}
5... Be7 {[%clk 0:02:53.5]} 6. O-O {[%clk 0:02:53.3]} 6... c6 {[%clk 0:02:52.6]}
7. a4 {[%clk 0:02:53]} 7... Qc7 {[%clk 0:02:50.7]} 8. Qe2 {[%clk 0:02:52.3]}
8... h6 {[%clk 0:02:50.8]} 9. Rd1 {[%clk 0:02:51.6]} 9... Nf8 {[%clk 0:02:50.9]}
10. Nh4 {[%clk 0:02:51.5]} 10... g6 {[%clk 0:02:50.5]} 11. b4 {[%clk 0:02:31.9]}
11... Bg4 {[%clk 0:02:42.9]} 12. Nf3 {[%clk 0:02:22.7]} 12... Ne6 {[%clk
0:02:41.4]} 13. Be3 {[%clk 0:02:22.9]} 13... exd4 {[%clk 0:02:37.4]} 14. Bxd4
{[%clk 0:02:23.1]} 14... Nxd4 {[%clk 0:02:37.2]} 15. Rxd4 {[%clk 0:02:24]} 15...
Nd7 {[%clk 0:02:34.6]} 16. h3 {[%clk 0:02:23.1]} 16... Bxf3 {[%clk 0:02:32.2]}
17. Qxf3 {[%clk 0:02:21.8]} 17... Ne5 {[%clk 0:02:32.2]} 18. Qf4 {[%clk
0:02:01.1]} 18... Nxc4 {[%clk 0:02:31.4]} 19. Rxc4 {[%clk 0:02:00.2]} 19... Qd7
{[%clk 0:02:21.1]} 20. Rd1 {[%clk 0:01:55.3]} 20... Qe6 {[%clk 0:02:16.3]} 21.
Rcd4 {[%clk 0:01:47.3]} 21... Rd8 {[%clk 0:02:13.7]} 22. Ne2 {[%clk 0:01:18.3]}
22... O-O {[%clk 0:02:05.1]} 23. R4d3 {[%clk 0:00:54.4]} 23... Bg5 {[%clk
0:01:59.3]} 24. Qg4 {[%clk 0:00:46.1]} 24... Qc4 {[%clk 0:01:49.2]} 25. c3
{[%clk 0:00:42.3]} 25... Bf6 {[%clk 0:01:41.1]} 26. Qf4 {[%clk 0:00:31.5]} 26...
Be5 {[%clk 0:01:30.6]} 27. Qe3 {[%clk 0:00:27.3]} 27... Rfe8 {[%clk 0:01:29.8]}
28. f4 {[%clk 0:00:26]} 28... Bg7 {[%clk 0:01:28.3]} 29. Ng3 {[%clk 0:00:24.8]}
29... d5 {[%clk 0:01:18.1]} 30. e5 {[%clk 0:00:24.1]} 30... b6 {[%clk
0:01:13.9]} 31. Qd4 {[%clk 0:00:22.6]} 31... Qa2 {[%clk 0:01:05.8]} 32. Re1
{[%clk 0:00:20.8]} 32... Qxa4 {[%clk 0:01:03.9]} 33. f5 {[%clk 0:00:21.1]} 33...
c5 {[%clk 0:00:55.3]} 34. Qf4 {[%clk 0:00:20.8]} 34... g5 {[%clk 0:00:47.8]} 35.
Qf3 {[%clk 0:00:11.7]} 35... Rxe5 {[%clk 0:00:42.2]} 36. Red1 {[%clk 0:00:09.5]}
36... Qc6 {[%clk 0:00:38.5]} 37. Nh5 {[%clk 0:00:08.7]} 37... c4 {[%clk
0:00:30.8]} 38. R3d2 {[%clk 0:00:07.6]} 38... f6 {[%clk 0:00:25.3]} 39. Ng3
{[%clk 0:00:05.4]} 39... Bf8 {[%clk 0:00:22.4]} 40. Ne2 {[%clk 0:00:05.8]} 40...
a5 {[%clk 0:00:20.3]} 41. Nd4 {[%clk 0:00:06.7]} 41... Qb7 {[%clk 0:00:18.6]}
42. Re2 {[%clk 0:00:07]} 42... axb4 {[%clk 0:00:15.6]} 43. Rxe5 {[%clk
0:00:05.9]} 43... fxe5 {[%clk 0:00:15.7]} 44. Ne6 {[%clk 0:00:06.8]} 44... Rd7
{[%clk 0:00:15.6]} 45. f6 {[%clk 0:00:06.1]} 45... Rf7 {[%clk 0:00:15.2]} 46.
Nd8 {[%clk 0:00:05.3]} 46... Qe7 {[%clk 0:00:14]} 47. Nxf7 {[%clk 0:00:06.2]}
47... Qxf7 {[%clk 0:00:13.1]} 48. cxb4 {[%clk 0:00:06.7]} 48... Bxb4 {[%clk
0:00:12.9]} 49. Rxd5 {[%clk 0:00:05.9]} 49... Bc5+ {[%clk 0:00:13.3]} 50. Kh2
{[%clk 0:00:05.1]} 50... c3 {[%clk 0:00:11.4]} 51. Rd8+ {[%clk 0:00:04.9]} 51...
Kh7 {[%clk 0:00:11.2]} 52. Qf5+ {[%clk 0:00:05]} 52... Qg6 {[%clk 0:00:11]} 53.
Rd7+ {[%clk 0:00:05.6]} 1-0